fUSD/lending_fUSD_20241225
["ID","MTS","AMOUNT","RATE_DAILY","PERIOD"]
[346653305,1735152659026,-500.0,0.0001281,2]
[346653306,1735152659035,-500.0,0.0001281,2]
[346653307,1735152659044,-1253.98,0.0001281,2]
[346653308,1735152659054,-3129.93,0.0001281,2]
[346653309,1735152659063,-500.0,0.0001281,2]
[346653310,1735152659072,-500.0,0.0001281,2]
[346653311,1735152659081,-1318.37,0.0001281,2]
[346653312,1735152659091,-500.0,0.0001281,2]
[346653313,1735152659100,-1179.69,0.0001281,2]
[346653314,1735152659109,-479.54422352,0.0001281,2]
[346653315,1735152659118,-500.0,0.0001281,2]
[346653316,1735152659127,-2333.11,0.0001281,2]
[346653317,1735152659137,-500.0,0.0001281,2]
[346653318,1735152659146,-439.46949142,0.0001281,2]
[346653319,1735152659155,-1657.96,0.0001281,2]
[346653320,1735152659165,-572.18,0.0001281,2]
[346653321,1735152659174,-1999.85,0.0001281,2]
[346653322,1735152659184,-500.0,0.0001281,2]
[346653323,1735152659193,-224.78,0.0001281,2]
[346653324,1735152659203,-500.0,0.0001281,2]
[346653325,1735152659212,-500.0,0.0001281,2]
[346653326,1735152659221,-500.0,0.0001281,2]
[346653327,1735152659231,-5508.36,0.0001281,2]
[346653328,1735152659240,-1151.01,0.0001281,2]
[346653329,1735152659249,-663.7,0.0001281,2]
[346653330,1735152659258,-500.0,0.0001281,2]
[346653331,1735152659268,-987.36,0.0001281,2]
[346653332,1735152659277,-500.0,0.0001281,2]
[346653333,1735152659286,-500.0,0.0001281,2]
[346653334,1735152659295,-757.03,0.0001281,2]
[346653335,1735152659307,-1043.04,0.0001281,2]
[346653336,1735152659317,-500.0,0.0001281,2]
[346653337,1735152659327,-1475.69,0.0001281,2]
[346653338,1735152659336,-1201.61,0.0001281,2]
[346653339,1735152659346,-606.69,0.0001281,2]
[346653340,1735152659355,-614.43,0.0001281,2]
[346653341,1735152659364,-500.0,0.0001281,2]
[346653342,1735152659373,-500.0,0.0001281,2]
[346653343,1735152659382,-500.0,0.0001281,2]
[346653344,1735152659392,-2122.77,0.0001281,2]
[346653345,1735152659401,-5090.25,0.0001281,2]
[346653346,1735152659410,-2128.39,0.0001281,2]
[346653347,1735152659420,-500.0,0.0001281,2]
[346653348,1735152659430,-544.31,0.0001281,2]
[346653349,1735152659439,-500.0,0.0001281,2]
[346653350,1735152659449,-500.0,0.0001281,2]
[346653351,1735152659458,-1013.74,0.0001281,2]
[346653352,1735152659467,-500.0,0.0001281,2]
[346653353,1735152659476,-500.0,0.0001281,2]
[346653354,1735152659486,-500.0,0.0001281,2]
[346653355,1735152659496,-500.0,0.0001281,2]
[346653356,1735152659505,-500.0,0.0001281,2]
[346653357,1735152659514,-533.62,0.0001281,2]
[346653358,1735152659523,-580.76,0.0001281,2]
[346653359,1735152659532,-1863.22,0.0001281,2]
[346653360,1735152659541,-500.0,0.0001281,2]
[346653361,1735152659550,-500.0,0.0001281,2]
[346653362,1735152659560,-504.02,0.0001281,2]
[346653363,1735152659570,-500.0,0.0001281,2]
[346653364,1735152659580,-538.34,0.0001281,2]
[346653365,1735152659590,-5066.67,0.0001281,2]
[346653366,1735152659599,-500.0,0.0001281,2]
[346653367,1735152659609,-500.0,0.0001281,2]
[346653368,1735152659619,-500.0,0.0001281,2]
[346653369,1735152659628,-500.0,0.0001281,2]
[346653370,1735152659637,-721.44,0.0001281,2]
[346653371,1735152659646,-500.0,0.0001281,2]
[346653372,1735152659655,-500.0,0.0001281,2]
[346653373,1735152659664,-500.0,0.0001281,2]
[346653374,1735152659673,-500.0,0.0001281,2]
[346653375,1735152659684,-544.96,0.0001281,2]
[346653376,1735152659694,-500.0,0.0001281,2]
[346653377,1735152659707,-500.0,0.0001281,2]
[346653378,1735152659717,-801.62,0.0001281,2]
[346653379,1735152659727,-500.0,0.0001281,2]
[346653380,1735152659910,-1522.74,0.0001281,2]
[346653381,1735152659941,-500.0,0.0001281,2]
[346653382,1735152659950,-745.0,0.00012811,2]
[346653383,1735152659959,-500.0,0.00012811,2]
[346653384,1735152659969,-500.0,0.00012811,2]
[346653385,1735152659977,-500.0,0.00012811,2]
[346653386,1735152659987,-500.0,0.00012811,2]
[346653387,1735152659995,-500.0,0.00012811,2]
[346653388,1735152660005,-500.0,0.00012811,2]
[346653389,1735152660015,-597.14,0.00012811,2]
[346653390,1735152660024,-500.0,0.00012811,2]
[346653391,1735152660033,-195.5,0.00012811,2]
[346653392,1735152660043,-500.0,0.00012811,2]
[346653393,1735152660052,-604.17,0.00012811,2]
[346653394,1735152660062,-500.0,0.00012811,2]
[346653395,1735152660071,-522.8,0.00012811,2]
[346653396,1735152660081,-382.42,0.00012811,2]
[346653397,1735152660092,-500.0,0.00012811,2]
[346653398,1735152660103,-532.82,0.00012811,2]
[346653399,1735152660112,-500.0,0.00012811,2]
[346653400,1735152660122,-500.0,0.00012811,2]
[346653401,1735152660132,-500.0,0.00012811,2]
[346653402,1735152660142,-500.0,0.00012811,2]
[346653403,1735152660154,-500.0,0.00012811,2]
[346653404,1735152660164,-500.0,0.00012811,2]
[346653405,1735152660175,-500.0,0.00012811,2]
[346653406,1735152660184,-500.0,0.00012811,2]
[346653407,1735152660196,-330.36,0.00012811,2]
[346653408,1735152660205,-500.0,0.00012811,2]
[346653409,1735152660214,-500.0,0.00012811,2]
[346653410,1735152660224,-500.0,0.00012811,2]
[346653411,1735152660233,-328.24,0.00012811,2]
[346653412,1735152660242,-500.0,0.00012811,2]
[346653413,1735152660252,-307.48,0.00012811,2]
[346653414,1735152660261,-500.0,0.00012811,2]
[346653415,1735152660271,-500.0,0.00012811,2]
[346653416,1735152660280,-500.0,0.00012811,2]
[346653417,1735152660290,-500.0,0.00012811,2]
[346653418,1735152660299,-500.0,0.00012811,2]
[346653419,1735152660308,-500.0,0.00012811,2]
[346653420,1735152660317,-500.0,0.00012811,2]
[346653421,1735152660326,-500.0,0.00012811,2]
[346653422,1735152660335,-352.28,0.00012811,2]
[346653423,1735152660344,-500.0,0.00012811,2]
[346653424,1735152660353,-500.0,0.00012811,2]
[346653425,1735152660362,-500.0,0.00012811,2]
[346653426,1735152660372,-500.0,0.00012811,2]
[346653427,1735152660381,-500.0,0.00012811,2]
[346653428,1735152660390,-500.0,0.00012811,2]
[346653429,1735152660399,-500.0,0.00012811,2]
[346653430,1735152660408,-485.1,0.00012811,2]
[346653431,1735152660417,-500.0,0.00012811,2]
[346653432,1735152660427,-500.0,0.00012811,2]
[346653433,1735152660437,-500.0,0.00012811,2]
[346653434,1735152660447,-434.28,0.00012811,2]
[346653435,1735152660457,-500.0,0.00012811,2]
[346653436,1735152660467,-500.0,0.00012811,2]
[346653437,1735152660476,-500.0,0.00012811,2]
[346653438,1735152660486,-500.0,0.00012811,2]
[346653439,1735152660495,-500.0,0.00012811,2]
[346653440,1735152660504,-500.0,0.00012811,2]
[346653441,1735152660514,-500.0,0.00012811,2]
[346653442,1735152660523,-459.1,0.00012811,2]
[346653443,1735152660532,-587.52,0.00012811,2]
[346653444,1735152660541,-500.0,0.00012811,2]
[346653445,1735152660550,-500.0,0.00012811,2]
[346653446,1735152660559,-500.0,0.00012811,2]
[346653447,1735152660568,-500.0,0.00012811,2]
[346653448,1735152660578,-500.0,0.00012811,2]
[346653449,1735152660587,-500.0,0.00012811,2]
[346653450,1735152660597,-500.0,0.00012811,2]
[346653451,1735152660606,-500.0,0.00012811,2]
[346653452,1735152660615,-500.0,0.00012811,2]
[346653453,1735152660625,-408.66,0.00012811,2]
[346653454,1735152660635,-500.0,0.00012811,2]
[346653455,1735152660644,-500.0,0.00012811,2]
[346653456,1735152660653,-500.0,0.00012811,2]
[346653457,1735152660663,-500.0,0.00012811,2]
[346653458,1735152660672,-500.0,0.00012811,2]
[346653459,1735152660682,-500.0,0.00012811,2]
[346653460,1735152660692,-275.9,0.00012811,2]
[346653461,1735152660701,-562.0,0.00012811,2]
[346653462,1735152660710,-500.0,0.00012811,2]
[346653463,1735152660719,-500.0,0.00012811,2]
[346653464,1735152660728,-500.0,0.00012811,2]
[346653465,1735152660737,-500.0,0.00012811,2]
[346653466,1735152660747,-500.0,0.00012811,2]
[346653467,1735152660756,-500.0,0.00012811,2]
[346653468,1735152660765,-500.0,0.00012811,2]
[346653469,1735152660774,-500.0,0.00012811,2]
[346653470,1735152660784,-420.88,0.00012811,2]
[346653471,1735152660793,-500.0,0.00012811,2]
[346653472,1735152660802,-500.0,0.00012811,2]
[346653473,1735152660810,-500.0,0.00012811,2]
[346653474,1735152660819,-500.0,0.00012811,2]
[346653475,1735152660828,-362.76,0.00012811,2]
[346653476,1735152660838,-500.0,0.00012811,2]
[346653477,1735152660848,-500.0,0.00012811,2]
[346653478,1735152660858,-500.0,0.00012811,2]
[346653479,1735152660867,-500.0,0.00012811,2]
[346653480,1735152660877,-500.0,0.00012811,2]
[346653481,1735152660886,-500.0,0.00012811,2]
[346653482,1735152660896,-500.0,0.00012811,2]
[346653483,1735152660909,-500.0,0.00012811,2]
[346653484,1735152660930,-500.0,0.00012811,2]
[346653485,1735152660951,-509.58,0.00012811,2]
[346653486,1735152660971,-500.0,0.00012811,2]
[346653487,1735152660991,-500.0,0.00012811,2]
[346653488,1735152661012,-500.0,0.00012811,2]
[346653489,1735152661032,-500.0,0.00012811,2]
[346653490,1735152661053,-500.0,0.00012811,2]
[346653491,1735152661074,-500.0,0.00012811,2]
[346653492,1735152661094,-537.94,0.00012811,2]
[346653493,1735152661103,-500.0,0.00012811,2]
[346653494,1735152661112,-500.0,0.00012811,2]
[346653495,1735152661122,-500.0,0.00012811,2]
[346653496,1735152661131,-500.0,0.00012811,2]
[346653497,1735152661139,-500.0,0.00012811,2]
[346653498,1735152661148,-500.0,0.00012811,2]
[346653499,1735152661157,-645.2,0.00012811,2]
[346653500,1735152661166,-500.0,0.00012811,2]
[346653501,1735152661175,-500.0,0.00012811,2]
[346653502,1735152661186,-500.0,0.00012811,2]
[346653503,1735152661195,-540.99,0.00012811,2]
[346653504,1735152661205,-500.0,0.00012811,2]
[346653505,1735152661214,-500.0,0.00012811,2]
[346653506,1735152661223,-524.75,0.00012811,2]
[346653507,1735152661232,-500.0,0.00012811,2]
[346653508,1735152661242,-500.0,0.00012811,2]
[346653509,1735152661252,-410.7,0.00012811,2]
[346653510,1735152661261,-505.73,0.00012811,2]
[346653511,1735152661270,-500.0,0.00012811,2]
[346653512,1735152661279,-521.22,0.00012811,2]
[346653513,1735152661288,-500.0,0.00012811,2]
[346653514,1735152661297,-500.0,0.00012811,2]
[346653515,1735152661306,-500.0,0.00012811,2]
[346653516,1735152661315,-500.0,0.00012811,2]
[346653517,1735152661325,-500.0,0.00012811,2]
[346653518,1735152661334,-219.24120589,0.00012811,2]
[346653519,1735152661343,-500.0,0.00012811,2]
[346653520,1735152661352,-500.0,0.00012811,2]
[346653521,1735152661362,-500.0,0.00012811,2]
[346653522,1735152661371,-500.0,0.00012811,2]
[346653523,1735152661380,-500.0,0.00012811,2]
[346653524,1735152661389,-500.0,0.00012811,2]
[346653525,1735152661398,-500.0,0.00012811,2]
[346653526,1735152661406,-500.0,0.00012811,2]
[346653527,1735152661416,-500.0,0.00012811,2]
[346653528,1735152661425,-500.0,0.00012811,2]
[346653529,1735152661441,-500.0,0.00012811,2]
[346653530,1735152661451,-500.0,0.00012811,2]
[346653531,1735152661460,-500.0,0.00012811,2]
[346653532,1735152661470,-500.0,0.00012811,2]
[346653533,1735152661479,-361.64,0.00012811,2]
[346653534,1735152661488,-500.0,0.00012811,2]
[346653535,1735152661498,-500.0,0.00012811,2]
[346653536,1735152661507,-500.0,0.00012811,2]
[346653537,1735152661517,-500.0,0.00012811,2]
[346653538,1735152661527,-79.45619138,0.00012811,2]
[346653539,1735152661803,-420.54380862,0.00012811,2]
[346653540,1735152661812,-263.49485327,0.00012811,2]
[346653541,1735152661823,-500.0,0.00012811,2]
[346653542,1735152661834,-500.0,0.00012811,2]
[346653543,1735152661845,-500.0,0.00012811,2]
[346653544,1735152661859,-500.0,0.00012811,2]
[346653545,1735152661868,-500.0,0.00012811,2]
[346653546,1735152661877,-500.0,0.00012811,2]
[346653547,1735152661887,-500.0,0.00012811,2]
[346653548,1735152661897,-500.0,0.00012811,2]
[346653549,1735152661907,-500.0,0.00012811,2]
[346653550,1735152661916,-500.0,0.00012811,2]
[346653551,1735152661925,-500.0,0.00012811,2]
[346653552,1735152661937,-249.11295972,0.00012811,2]
[346653553,1735152661947,-984.6,0.00012811,2]
[346653554,1735152661956,-500.0,0.00012811,2]
[346653555,1735152661966,-500.0,0.00012811,2]
[346653556,1735152661975,-500.0,0.00012811,2]
[346653557,1735152661984,-501.74,0.00012811,2]
[346653558,1735152661993,-765.9,0.00012811,2]
[346653559,1735152662004,-150.0,0.00012811,2]
[346653560,1735152662013,-500.0,0.00012811,2]
[346653561,1735152662024,-500.0,0.00012811,2]
[346653562,1735152662034,-500.0,0.00012811,2]
[346653563,1735152662043,-500.0,0.00012811,2]
[346653564,1735152662052,-724.7,0.00012811,2]
[346653565,1735152662061,-490.78512808,0.00012811,2]
[346653566,1735152662071,-500.0,0.00012811,2]
[346653567,1735152662080,-2216.98,0.00012811,2]
[346653568,1735152662092,-500.0,0.00012811,2]
[346653569,1735152662102,-500.0,0.00012811,2]
[346653570,1735152662112,-500.0,0.00012811,2]
[346653571,1735152662122,-1476.62,0.00012811,2]
[346653572,1735152662131,-500.0,0.00012811,2]
[346653573,1735152662142,-500.0,0.00012811,2]
[346653574,1735152662152,-500.0,0.00012811,2]
[346653575,1735152662162,-500.0,0.00012811,2]
[346653576,1735152662174,-500.0,0.00012811,2]
[346653577,1735152662185,-833.75,0.00012811,2]
[346653578,1735152662194,-500.0,0.00012811,2]
[346653579,1735152662204,-500.0,0.00012811,2]
[346653580,1735152662213,-1606.07,0.00012811,2]
[346653581,1735152662224,-500.0,0.00012811,2]
[346653582,1735152662234,-500.0,0.00012811,2]
[346653583,1735152662244,-500.0,0.00012811,2]
[346653584,1735152662254,-500.0,0.00012811,2]
[346653585,1735152662264,-2829.5,0.00012811,2]
[346653586,1735152662274,-500.0,0.00012811,2]
[346653587,1735152662285,-500.0,0.00012811,2]
[346653588,1735152662295,-647.08,0.00012811,2]
[346653589,1735152662306,-500.0,0.00012811,2]
[346653590,1735152662315,-1310.4,0.00012811,2]
[346653591,1735152662325,-523.14,0.00012811,2]
[346653592,1735152662334,-500.0,0.00012811,2]
[346653593,1735152662344,-725.46,0.00012811,2]
[346653594,1735152662354,-500.0,0.00012811,2]
[346653595,1735152662363,-500.0,0.00012811,2]
[346653596,1735152662372,-500.0,0.00012811,2]
[346653597,1735152662382,-1060.4,0.00012811,2]
[346653598,1735152662392,-500.0,0.00012811,2]
[346653599,1735152662402,-621.62,0.00012811,2]
[346653600,1735152662411,-500.0,0.00012811,2]
[346653601,1735152662422,-500.0,0.00012811,2]
[346653602,1735152662433,-1036.2,0.00012811,2]
[346653603,1735152662442,-500.0,0.00012811,2]
[346653604,1735152662451,-500.0,0.00012811,2]
[346653605,1735152662461,-500.0,0.00012811,2]
[346653606,1735152662471,-500.0,0.00012811,2]
[346653607,1735152662482,-500.0,0.00012811,2]
[346653608,1735152662491,-500.0,0.00012811,2]
[346653609,1735152662501,-500.0,0.00012811,2]
[346653610,1735152662511,-668.13,0.00012811,2]
[346653611,1735152662520,-500.0,0.00012811,2]
[346653612,1735152662530,-500.0,0.00012811,2]
[346653613,1735152662540,-500.0,0.00012811,2]
[346653614,1735152662549,-500.0,0.00012811,2]
[346653615,1735152662558,-1658.4,0.00012811,2]
[346653616,1735152662567,-636.56,0.00012811,2]
[346653617,1735152662577,-555.26,0.00012811,2]
[346653618,1735152662586,-500.0,0.00012811,2]
[346653619,1735152662596,-500.0,0.00012811,2]
[346653620,1735152662606,-500.0,0.00012811,2]
[346653621,1735152662616,-1909.21,0.00012811,2]
[346653622,1735152662626,-500.0,0.00012811,2]
[346653623,1735152662635,-500.0,0.00012811,2]
[346653624,1735152662645,-500.0,0.00012811,2]
[346653625,1735152662654,-500.0,0.00012811,2]
[346653626,1735152662663,-500.0,0.00012811,2]
[346653627,1735152662673,-500.0,0.00012811,2]
[346653628,1735152662682,-500.0,0.00012811,2]
[346653629,1735152662691,-500.0,0.00012811,2]
[346653630,1735152662701,-500.0,0.00012811,2]
[346653631,1735152662711,-500.0,0.00012811,2]
[346653632,1735152662721,-500.0,0.00012811,2]
[346653633,1735152662731,-238.8,0.00012811,2]
[346653634,1735152662740,-500.0,0.00012811,2]
[346653635,1735152662751,-500.0,0.00012811,2]
[346653636,1735152662760,-500.0,0.00012811,2]
[346653637,1735152662773,-500.0,0.00012811,2]
[346653638,1735152662783,-500.0,0.00012811,2]
[346653639,1735152662792,-500.0,0.00012811,2]
[346653640,1735152662802,-500.0,0.00012811,2]
[346653641,1735152662811,-706.63,0.00012811,2]
[346653642,1735152662821,-500.0,0.00012811,2]
[346653643,1735152662830,-604.57,0.00012811,2]
[346653644,1735152662839,-500.0,0.00012811,2]
[346653645,1735152662850,-553.88,0.00012811,2]
[346653646,1735152662861,-500.0,0.00012811,2]
[346653647,1735152662870,-500.0,0.00012811,2]
[346653648,1735152662880,-527.51,0.00012811,2]
[346653649,1735152662891,-500.0,0.00012811,2]
[346653650,1735152662900,-411.52995543,0.00012811,2]
[346653651,1735152662909,-429.10429252,0.00012814,2]
[346653652,1735152662918,-470.22696757,0.000129,2]
[346653653,1735152662929,-19624.7723929,0.000129,2]
[346653654,1735152662939,-1000.0,0.000129,2]
[346653655,1735152663124,-1100.0,0.0001297,2]
[346653656,1735152663135,-502.73685333,0.00012973,2]
[346653657,1735152663145,-500.0,0.00012973,2]
[346653658,1735152663154,-63505.90081491,0.0001299,2]
[346653659,1735152663163,-1000.0,0.00012999,2]
[346653660,1735152663172,-500.0,0.00012999,2]
[346653661,1735152663181,-500.0,0.00012999,2]
[346653662,1735152663191,-500.0,0.00012999,2]
[346653663,1735152663200,-500.0,0.00012999,2]
[346653664,1735152663211,-500.0,0.00012999,2]
[346653665,1735152663221,-260.56,0.00012999,2]
[346653666,1735152663230,-233.47331052,0.00013,2]
[346653667,1735152663240,-273210.77765095,0.00013,2]
[346653668,1735152663254,-421.36680844,0.00013,2]
[346653669,1735152663588,-305.73329223,0.00011988,2]
[346653670,1735152663615,-194.26670777,0.00011988,2]
[346653671,1735152663624,-500.0,0.00011988,2]
[346653672,1735152663633,-500.0,0.00011988,2]
[346653673,1735152663643,-500.0,0.00011988,2]
[346653674,1735152663653,-310.42686437,0.00011988,2]
[346653675,1735152663664,-189.57313563,0.00011988,2]
[346653676,1735152663673,-152.81269552,0.00011989,2]
[346653677,1735152663684,-342.89261828,0.00011989,2]
[346653678,1735152663696,-4.2946862,0.00011989,2]
[346653679,1735152663705,-415.4953138,0.00012262,2]
[346653680,1735152663716,-84.5046862,0.00012262,2]
[346653681,1735152663726,-500.0,0.00012262,2]
[346653682,1735152663735,-500.0,0.00012262,2]
[346653683,1735152663745,-500.0,0.00012263,2]
[346653684,1735152663755,-500.0,0.00012536,2]
[346653685,1735152663764,-376.41,0.00012537,2]
[346653686,1735152663774,-190.58,0.0001281,2]
[346653687,1735152663784,-667.46795407,0.00013,2]
[346653688,1735152663816,-1979.2274381,0.00013,2]
[346653689,1735152663838,-500.0,0.00012536,2]
[346653690,1735152663849,-1193.83655973,0.00013,2]
[346653691,1735152663864,-18181.92258214,0.00013,2]
[346653692,1735152663875,-347.94,0.00013,2]
[346653693,1735152663887,-1092.654826,0.00013,2]
[346653694,1735152664304,-500.0,0.00011988,2]
[346653695,1735152664314,-500.0,0.00011988,2]
[346653696,1735152664323,-617.75,0.00011988,2]
[346653697,1735152664332,-500.0,0.00011988,2]
[346653698,1735152664342,-500.0,0.00011989,2]
[346653699,1735152664352,-500.0,0.00012262,2]
[346653700,1735152664361,-500.0,0.00012262,2]
[346653701,1735152664370,-500.0,0.00012262,2]
[346653702,1735152664383,-500.0,0.00012263,2]
[346653703,1735152664393,-457.62,0.00012536,2]
[346653704,1735152664402,-425.46,0.00012536,2]
[346653705,1735152664412,-500.0,0.00012537,2]
[346653706,1735152664422,-230.94,0.0001281,2]
[346653707,1735152664431,-188.37,0.00012811,2]
[346653708,1735152664442,-25266.34570744,0.00013,2]
[346653709,1735152664532,-2765.64187113,0.00013,2]
[346653710,1735152664544,-471.27009995,0.00013,2]
[346653711,1735152664555,-295.38399202,0.00013,2]
[346653712,1735152664566,-1735.0,0.00013,2]
[346653713,1735152664577,-571.02399984,0.00013,2]
[346653714,1735152664588,-719.25,0.00013,2]
[346653715,1735152664600,-18221.16622919,0.00013,2]
[346653716,1735152664609,-2158974.95896095,0.00013,2]
[346653717,1735152664629,-500.0,0.00011989,2]
[346653718,1735152664638,-22807.84369583,0.00013,2]
[346653719,1735152664649,-23875.000004,0.00013,2]
[346653720,1735152665033,-500.0,0.00011988,2]
[346653721,1735152665043,-500.0,0.00011988,2]
[346653722,1735152665052,-500.0,0.00011988,2]
[346653723,1735152665062,-500.0,0.00011989,2]
[346653724,1735152665071,-500.0,0.00012262,2]
[346653725,1735152665081,-500.0,0.00012262,2]
[346653726,1735152665091,-241.8,0.00012263,2]
[346653727,1735152665100,-56.32190352,0.00012536,2]
[346653728,1735152665112,-184.03809648,0.00012536,2]
[346653729,1735152665121,-4773.90800352,0.00013,2]
[346653730,1735152665132,-35690.37758718,0.00013,2]
[346653731,1735152665143,-44098.50000238,0.00013,2]
[346653732,1735152665155,-1260.95811225,0.00013,2]
[346653733,1735152665166,-7392.2275,0.00013,2]
[346653734,1735152665177,-6300.0,0.00013,2]
[346653735,1735152665188,-2894.16895541,0.00013,2]
[346653736,1735152665199,-6735.34923962,0.00013,2]
[346653737,1735152665218,-500.0,0.00012263,2]
[346653738,1735152665227,-4837.5,0.00013,2]
[346653739,1735152665239,-358.95099704,0.00013,2]
[346653740,1735152665251,-655.5723265,0.00013,2]
[346653741,1735152665262,-75932.28842247,0.00013,2]
[346653742,1735152665274,-69457.29340278,0.00013,2]
[346653743,1735152665285,-5255.85052947,0.00013,2]
[346653744,1735152665296,-12077.07192537,0.00013,2]
[346653745,1735152665315,-265.93,0.00012537,2]
[346653746,1735152665324,-632.36920364,0.00013,2]
[346653749,1735152853142,150.0,0.000179,30]
[346653752,1735153410841,1151.53804975,0.00024953,60]
[346653753,1735153463224,3000.0,0.00024959,120]
[346653754,1735153745137,-516.28,9.23e-05,2]
[346653767,1735153831583,-445.43,0.00010137,2]
[346653768,1735153831592,-54.57,0.00010137,2]
[346653769,1735153831697,-113.01,0.00010137,2]
[346653770,1735153831707,-253.62,0.00011089,2]
[346653771,1735153831716,-250.0,0.00011108,2]
[346653772,1735153831726,-158.74872067,0.00011148,2]
[346653773,1735153831738,-841.25127933,0.00011148,2]
[346653774,1735153831747,-751.36,0.00011217,2]
[346653775,1735153831757,-250.0,0.00011246,2]
[346653776,1735153831766,-250.0,0.00011368,2]
[346653777,1735153831775,-1200.66,0.00011406,2]
[346653778,1735153831786,-106.72872068,0.00011487,2]
[346653779,1735153831797,-93.27127932,0.00011487,2]
[346653780,1735153831807,-516.28,0.00011494,2]
[346653781,1735153831817,-1840.44872068,0.00011496,2]
[346653782,1735153831828,-725.291,0.00011496,2]
[346653783,1735153831840,-326.75996925,0.00011496,2]
[346653784,1735153831889,-25113.02915221,0.00011496,2]
[346653785,1735153831899,-500.0,0.00011511,2]
[346653786,1735153831910,-531.60195459,0.00011788,2]
[346653787,1735153831919,-10244.406,0.00011789,2]
[346653788,1735153831928,-10473.13212942,0.00011887,2]
[346653789,1735153831939,-1929.6276839,0.00011887,2]
[346653790,1735153831951,-29187.75438668,0.00011887,2]
[346653791,1735153831960,-201.65,0.00011888,2]
[346653792,1735153831969,-1000.0,0.00011888,2]
[346653793,1735153831979,-5000.0,0.00011888,2]
[346653794,1735153831988,-55555.0,0.00011888,2]
[346653795,1735153831997,-1361.9112,0.00011889,2]
[346653796,1735153832007,-500.0,0.00011972,2]
[346653797,1735153832016,-1200.0,0.00011972,2]
[346653798,1735153832026,-553.58,0.00011986,2]
[346653799,1735153832035,-1514.84,0.00011986,2]
[346653800,1735153832044,-500.0,0.00011986,2]
[346653801,1735153832054,-2690.19,0.00011986,2]
[346653802,1735153832063,-773.73,0.00011986,2]
[346653803,1735153832073,-511.25,0.00011986,2]
[346653804,1735153832082,-1952.74,0.00011986,2]
[346653805,1735153832092,-4424.92,0.00011986,2]
[346653806,1735153832100,-952.2,0.00011986,2]
[346653807,1735153832110,-500.0,0.00011986,2]
[346653808,1735153832119,-155.940262,0.00011986,2]
[346653809,1735153832129,-443.459421,0.00011986,2]
[346653810,1735153832138,-582.43,0.00011986,2]
[346653811,1735153832147,-1098.6,0.00011986,2]
[346653813,1735153832156,-533.10699,0.00011986,2]
[346653815,1735153832166,-2173.85724925,0.00011986,2]
[346653816,1735153832176,-500.0,0.00011986,2]
[346653817,1735153832189,-500.0,0.00011986,2]
[346653818,1735153832199,-1081.65,0.00011986,2]
[346653819,1735153832208,-1079.5,0.00011986,2]
[346653820,1735153832217,-528.95,0.00011986,2]
[346653821,1735153832228,-762.29,0.00011986,2]
[346653822,1735153832237,-1323.68,0.00011986,2]